[Event "*** Titled Tuesday Blitz"]
[Site "Chess.com"]
[Date "2020.03.03"]
[Round "2"]
[White "Ariadna_Atreides"]
[Black "parmupill123"]
[Result "0-1"]
[WhiteElo "2116"]
[BlackElo "2449"]
[TimeControl "180+1"]
[EndTime "9:19:30 PST"]
[Termination "parmupill123 won on time"]

1. d4 {[%clk 0:02:58.6]} 1... Nf6 {[%clk 0:02:27.7]} 2. Nf3 {[%clk 0:02:56.8]}
2... b6 {[%clk 0:02:25.7]} 3. c4 {[%clk 0:02:55.2]} 3... Bb7 {[%clk 0:02:25.4]}
4. Nc3 {[%clk 0:02:54.3]} 4... e6 {[%clk 0:02:25.8]} 5. a3 {[%clk 0:02:50.7]}
5... Be7 {[%clk 0:02:16.6]} 6. Bf4 {[%clk 0:02:34.9]} 6... O-O {[%clk
0:01:57.2]} 7. h3 {[%clk 0:02:32.5]} 7... d6 {[%clk 0:01:47.7]} 8. e3 {[%clk
0:02:32.1]} 8... Nbd7 {[%clk 0:01:46.8]} 9. Be2 {[%clk 0:02:25.3]} 9... c5
{[%clk 0:01:46.8]} 10. O-O {[%clk 0:02:24.5]} 10... Ne4 {[%clk 0:01:46.3]} 11.
Nxe4 {[%clk 0:02:14.9]} 11... Bxe4 {[%clk 0:01:47.2]} 12. Bd3 {[%clk 0:02:12.9]}
12... Bxd3 {[%clk 0:01:46.6]} 13. Qxd3 {[%clk 0:02:12.3]} 13... Rc8 {[%clk
0:01:46]} 14. Rac1 {[%clk 0:02:09.6]} 14... Qc7 {[%clk 0:01:43.2]} 15. Rfd1
{[%clk 0:02:05.3]} 15... Rfd8 {[%clk 0:01:41.7]} 16. b4 {[%clk 0:01:50.1]} 16...
a5 {[%clk 0:01:31.3]} 17. bxc5 {[%clk 0:01:45.9]} 17... bxc5 {[%clk 0:01:30.7]}
18. d5 {[%clk 0:01:38.7]} 18... e5 {[%clk 0:01:29.7]} 19. Bg5 {[%clk 0:01:38.3]}
19... Bxg5 {[%clk 0:01:27.3]} 20. Nxg5 {[%clk 0:01:37.5]} 20... Nf6 {[%clk
0:01:26.9]} 21. Rb1 {[%clk 0:01:31.3]} 21... Rb8 {[%clk 0:01:26.3]} 22. Rxb8
{[%clk 0:01:25.3]} 22... Rxb8 {[%clk 0:01:24.9]} 23. Rb1 {[%clk 0:01:25.8]}
23... a4 {[%clk 0:01:19.2]} 24. Qc2 {[%clk 0:01:19.7]} 24... Rxb1+ {[%clk
0:01:11.1]} 25. Qxb1 {[%clk 0:01:18.8]} 25... h6 {[%clk 0:01:11.2]} 26. Nf3
{[%clk 0:01:16.6]} 26... Nd7 {[%clk 0:01:03.8]} 27. Qb5 {[%clk 0:01:13.3]} 27...
Nb6 {[%clk 0:01:03.7]} 28. Nd2 {[%clk 0:01:11.4]} 28... g6 {[%clk 0:01:01.7]}
29. e4 {[%clk 0:01:05.4]} 29... Kg7 {[%clk 0:00:56.3]} 30. f3 {[%clk 0:01:01.7]}
30... Qa7 {[%clk 0:00:54.4]} 31. Nb1 {[%clk 0:00:57.2]} 31... Kf8 {[%clk
0:00:45.2]} 32. Nc3 {[%clk 0:00:57]} 32... Ke7 {[%clk 0:00:44.7]} 33. Kf2 {[%clk
0:00:52.7]} 33... h5 {[%clk 0:00:36.8]} 34. Ke3 {[%clk 0:00:52.3]} 34... Kf6
{[%clk 0:00:34]} 35. Kd3 {[%clk 0:00:50]} 35... Ke7 {[%clk 0:00:23.8]} 36. Qc6
{[%clk 0:00:43.9]} 36... h4 {[%clk 0:00:17.2]} 37. Nb5 {[%clk 0:00:43.4]} 37...
Qb8 {[%clk 0:00:14.5]} 38. Kc3 {[%clk 0:00:20.5]} 38... Nd7 {[%clk 0:00:13.5]}
39. Kd3 {[%clk 0:00:14.9]} 39... Qb6 {[%clk 0:00:12.5]} 40. Qc8 {[%clk
0:00:08.4]} 40... Qa5 {[%clk 0:00:08.3]} 41. Nc7 {[%clk 0:00:06.8]} 41... Nf6
{[%clk 0:00:06.3]} 42. Qb7 {[%clk 0:00:05.1]} 42... Kf8 {[%clk 0:00:05.8]} 43.
Qc8+ {[%clk 0:00:04.4]} 43... Kg7 {[%clk 0:00:05.8]} 44. Qd8 {[%clk 0:00:03.6]}
44... Qe1 {[%clk 0:00:04.2]} 45. Qxd6 {[%clk 0:00:02.1]} 45... Qd1+ {[%clk
0:00:04.6]} 46. Kc3 {[%clk 0:00:01]} 46... Qb3+ {[%clk 0:00:04.6]} 0-1

[Event "*** Titled Tuesday Blitz"]
[Site "Chess.com"]
[Date "2020.03.03"]
[Round "2"]
[White "JSPrepz"]
[Black "Gahan-MG"]
[Result "1-0"]
[WhiteElo "2742"]
[BlackElo "2452"]
[TimeControl "180+1"]
[EndTime "9:19:32 PST"]
[Termination "JSPrepz won on time"]

1. e4 {[%clk 0:03:00.9]} 1... c5 {[%clk 0:02:59.4]} 2. Nf3 {[%clk 0:03:00.1]}
2... e6 {[%clk 0:02:59.8]} 3. b4 {[%clk 0:02:58.3]} 3... cxb4 {[%clk 0:02:59.5]}
4. d4 {[%clk 0:02:58.2]} 4... d5 {[%clk 0:02:59.2]} 5. e5 {[%clk 0:02:58.5]}
5... Nc6 {[%clk 0:02:59.1]} 6. a3 {[%clk 0:02:58.9]} 6... f6 {[%clk 0:02:58.5]}
7. axb4 {[%clk 0:02:56.7]} 7... Bxb4+ {[%clk 0:02:54]} 8. c3 {[%clk 0:02:56.7]}
8... Ba5 {[%clk 0:02:51.6]} 9. Bd3 {[%clk 0:02:52.5]} 9... Bc7 {[%clk
0:02:48.3]} 10. O-O {[%clk 0:02:50.2]} 10... fxe5 {[%clk 0:02:43.2]} 11. dxe5
{[%clk 0:02:15.9]} 11... Nge7 {[%clk 0:02:42.6]} 12. Re1 {[%clk 0:02:13.5]}
12... Ng6 {[%clk 0:02:03.5]} 13. Na3 {[%clk 0:02:04.2]} 13... O-O {[%clk
0:01:54.3]} 14. Nb5 {[%clk 0:02:00]} 14... Rxf3 {[%clk 0:01:42.1]} 15. Qxf3
{[%clk 0:01:53.3]} 15... Ncxe5 {[%clk 0:01:36.3]} 16. Qh3 {[%clk 0:01:06.7]}
16... Nxd3 {[%clk 0:01:30.6]} 17. Nxc7 {[%clk 0:01:03.7]} 17... Ndf4 {[%clk
0:01:24.4]} 18. Qf3 {[%clk 0:00:40.5]} 18... Qxc7 {[%clk 0:01:23]} 19. g3 {[%clk
0:00:39.1]} 19... Nh3+ {[%clk 0:01:10.8]} 20. Kg2 {[%clk 0:00:39.4]} 20... e5
{[%clk 0:00:34.2]} 21. Qxd5+ {[%clk 0:00:39.5]} 21... Kh8 {[%clk 0:00:34.2]} 22.
Rd1 {[%clk 0:00:40]} 22... Bf5 {[%clk 0:00:28.4]} 23. Rxa7 {[%clk 0:00:31]}
23... Be4+ {[%clk 0:00:15.4]} 24. Qxe4 {[%clk 0:00:30.7]} 24... Rxa7 {[%clk
0:00:15.7]} 25. Kxh3 {[%clk 0:00:31.1]} 25... Ra8 {[%clk 0:00:12.9]} 26. Kg2
{[%clk 0:00:27.4]} 26... Qxc3 {[%clk 0:00:11.4]} 27. Qxb7 {[%clk 0:00:27.3]}
27... Rf8 {[%clk 0:00:11.2]} 28. Be3 {[%clk 0:00:26.8]} 28... Qc8 {[%clk
0:00:08.1]} 29. Rd7 {[%clk 0:00:24.9]} 29... Qxb7+ {[%clk 0:00:06.3]} 30. Rxb7
{[%clk 0:00:25.8]} 30... h6 {[%clk 0:00:06.1]} 31. h4 {[%clk 0:00:25.6]} 31...
Rf6 {[%clk 0:00:04.7]} 32. Bc5 {[%clk 0:00:15.8]} 32... Kh7 {[%clk 0:00:04.5]}
33. Rb8 {[%clk 0:00:14.9]} 33... Rf7 {[%clk 0:00:03.3]} 34. Re8 {[%clk
0:00:14.3]} 34... Rc7 {[%clk 0:00:02.6]} 35. Bd6 {[%clk 0:00:13]} 35... Rd7
{[%clk 0:00:02.8]} 36. Bb8 {[%clk 0:00:12.9]} 36... Rb7 {[%clk 0:00:01.8]} 37.
h5 {[%clk 0:00:12.7]} 37... Ne7 {[%clk 0:00:02.2]} 38. Bxe5 {[%clk 0:00:12.7]}
38... Nd5 {[%clk 0:00:02.7]} 39. Rd8 {[%clk 0:00:12.6]} 39... Ne7 {[%clk
0:00:02.1]} 40. Bf4 {[%clk 0:00:07.8]} 40... Nc6 {[%clk 0:00:02.1]} 41. Rd5
{[%clk 0:00:07.3]} 41... Nb4 {[%clk 0:00:02.2]} 42. Rd6 {[%clk 0:00:07.3]} 42...
Nc2 {[%clk 0:00:02.4]} 43. Bd2 {[%clk 0:00:06.5]} 43... Nb4 {[%clk 0:00:01.9]}
44. g4 {[%clk 0:00:06.5]} 1-0

[Event "*** Titled Tuesday Blitz"]
[Site "Chess.com"]
[Date "2020.03.03"]
[Round "2"]
[White "yoolund"]
[Black "Ceejay271"]
[Result "1/2-1/2"]
[WhiteElo "2637"]
[BlackElo "2314"]
[TimeControl "180+1"]
[EndTime "9:19:38 PST"]
[Termination "Game drawn by agreement"]

1. d4 {[%clk 0:03:00.9]} 1... Nf6 {[%clk 0:02:59.7]} 2. Bg5 {[%clk 0:02:57.4]}
2... d5 {[%clk 0:02:58]} 3. Bxf6 {[%clk 0:02:56.6]} 3... exf6 {[%clk 0:02:58.9]}
4. e3 {[%clk 0:02:56.6]} 4... Nd7 {[%clk 0:02:58.4]} 5. c4 {[%clk 0:02:56.4]}
5... dxc4 {[%clk 0:02:57.5]} 6. Bxc4 {[%clk 0:02:57.3]} 6... Nb6 {[%clk
0:02:56.5]} 7. Bb3 {[%clk 0:02:53.4]} 7... Bd6 {[%clk 0:02:48.9]} 8. Nc3 {[%clk
0:02:49.2]} 8... O-O {[%clk 0:02:42.2]} 9. Nge2 {[%clk 0:02:46.9]} 9... c6
{[%clk 0:02:41.6]} 10. O-O {[%clk 0:02:46]} 10... f5 {[%clk 0:02:38.7]} 11. Ng3
{[%clk 0:02:45.6]} 11... g6 {[%clk 0:02:36.5]} 12. Qf3 {[%clk 0:02:44.4]} 12...
a5 {[%clk 0:02:25.3]} 13. a3 {[%clk 0:02:41]} 13... a4 {[%clk 0:02:23.6]} 14.
Ba2 {[%clk 0:02:40.1]} 14... Ra5 {[%clk 0:02:06]} 15. Rad1 {[%clk 0:02:34.3]}
15... Qe7 {[%clk 0:01:58.1]} 16. Rfe1 {[%clk 0:02:32.5]} 16... Be6 {[%clk
0:01:56.5]} 17. Bxe6 {[%clk 0:02:26]} 17... Qxe6 {[%clk 0:01:54.4]} 18. e4
{[%clk 0:02:24.9]} 18... Bxg3 {[%clk 0:01:41.2]} 19. hxg3 {[%clk 0:02:25.8]}
19... Qb3 {[%clk 0:01:40.8]} 20. Re2 {[%clk 0:01:47.8]} 20... fxe4 {[%clk
0:01:13.4]} 21. Qxe4 {[%clk 0:01:48.7]} 21... Nd5 {[%clk 0:01:10.4]} 22. Qc2
{[%clk 0:01:44.4]} 22... Nxc3 {[%clk 0:01:05.4]} 23. bxc3 {[%clk 0:01:40.5]}
23... Qxa3 {[%clk 0:01:04.5]} 24. c4 {[%clk 0:01:26.5]} 24... Qd6 {[%clk
0:00:51.2]} 25. c5 {[%clk 0:01:04.3]} 25... Qd5 {[%clk 0:00:49.5]} 26. Re5
{[%clk 0:01:02.9]} 26... Qd7 {[%clk 0:00:39.7]} 27. d5 {[%clk 0:01:02.6]} 27...
cxd5 {[%clk 0:00:29.3]} 28. Rexd5 {[%clk 0:00:57.7]} 28... Qc6 {[%clk
0:00:27.7]} 29. Qc3 {[%clk 0:00:34.7]} 29... Raa8 {[%clk 0:00:23.8]} 30. Rd6
{[%clk 0:00:31.1]} 30... Qb5 {[%clk 0:00:23.2]} 31. Rb6 {[%clk 0:00:28.2]} 31...
Qa5 {[%clk 0:00:21.4]} 32. Qxa5 {[%clk 0:00:21.2]} 32... Rxa5 {[%clk 0:00:22.3]}
33. Rxb7 {[%clk 0:00:21.3]} 33... Rxc5 {[%clk 0:00:22.1]} 34. Ra7 {[%clk
0:00:21.1]} 34... Rc4 {[%clk 0:00:22.1]} 35. Ra1 {[%clk 0:00:20.4]} 35... Rd8
{[%clk 0:00:21.6]} 36. R7xa4 {[%clk 0:00:20.7]} 36... Rxa4 {[%clk 0:00:21]} 37.
Rxa4 {[%clk 0:00:19.7]} 37... Rd1+ {[%clk 0:00:21.9]} 38. Kh2 {[%clk 0:00:19.7]}
38... Rd2 {[%clk 0:00:22.4]} 39. f3 {[%clk 0:00:19.9]} 39... Kg7 {[%clk
0:00:22]} 40. g4 {[%clk 0:00:19.9]} 40... Re2 {[%clk 0:00:20.8]} 41. Kg3 {[%clk
0:00:20]} 41... Rd2 {[%clk 0:00:20.4]} 42. Re4 {[%clk 0:00:19]} 42... Rb2 {[%clk
0:00:20.1]} 43. Rf4 {[%clk 0:00:18.6]} 43... Ra2 {[%clk 0:00:20.4]} 44. Re4
{[%clk 0:00:18.7]} 44... Rb2 {[%clk 0:00:20.8]} 45. Rf4 {[%clk 0:00:18.8]} 45...
Ra2 {[%clk 0:00:21.2]} 46. Re4 {[%clk 0:00:19.1]} 46... g5 {[%clk 0:00:21.3]}
47. Re5 {[%clk 0:00:18.8]} 47... h6 {[%clk 0:00:21.4]} 48. Rf5 {[%clk
0:00:18.4]} 48... Ra3 {[%clk 0:00:21.4]} 49. Re5 {[%clk 0:00:18.3]} 49... Ra4
{[%clk 0:00:21.4]} 50. Re3 {[%clk 0:00:17.9]} 50... Rb4 {[%clk 0:00:21.4]} 51.
Re5 {[%clk 0:00:17.6]} 51... Ra4 {[%clk 0:00:21.7]} 52. Rf5 {[%clk 0:00:17.7]}
52... Rb4 {[%clk 0:00:22.1]} 53. Kf2 {[%clk 0:00:17.9]} 53... Rb2+ {[%clk
0:00:22]} 54. Kg3 {[%clk 0:00:18.2]} 54... Rb4 {[%clk 0:00:22.7]} 55. Kh3 {[%clk
0:00:18.4]} 55... Ra4 {[%clk 0:00:22.9]} 56. Kg3 {[%clk 0:00:17.5]} 56... Ra3
{[%clk 0:00:22.8]} 57. Re5 {[%clk 0:00:16.7]} 57... Rb3 {[%clk 0:00:23.1]} 58.
Re4 {[%clk 0:00:16.7]} 58... Rb5 {[%clk 0:00:22.9]} 59. Re3 {[%clk 0:00:15.6]}
59... Ra5 {[%clk 0:00:23.1]} 60. Re4 {[%clk 0:00:15.2]} 1/2-1/2

[Event "*** Titled Tuesday Blitz"]
[Site "Chess.com"]
[Date "2020.03.03"]
[Round "2"]
[White "xamax2000"]
[Black "wonderfultime"]
[Result "1-0"]
[WhiteElo "2696"]
[BlackElo "3024"]
[TimeControl "180+1"]
[EndTime "9:19:40 PST"]
[Termination "xamax2000 won on time"]

1. c4 {[%clk 0:03:00.8]} 1... c6 {[%clk 0:02:58.6]} 2. d4 {[%clk 0:03:00.7]}
2... d5 {[%clk 0:02:58.5]} 3. Nf3 {[%clk 0:03:01.6]} 3... Nf6 {[%clk 0:02:58.5]}
4. e3 {[%clk 0:03:02]} 4... Bf5 {[%clk 0:02:58.3]} 5. Nc3 {[%clk 0:03:01.9]}
5... e6 {[%clk 0:02:58.7]} 6. Qb3 {[%clk 0:03:02.4]} 6... Qc7 {[%clk 0:02:58.2]}
7. Nh4 {[%clk 0:02:59.6]} 7... Be4 {[%clk 0:02:55.5]} 8. f3 {[%clk 0:02:59.9]}
8... dxc4 {[%clk 0:02:53.8]} 9. Qxc4 {[%clk 0:02:43.2]} 9... Bd5 {[%clk
0:02:53.4]} 10. Nxd5 {[%clk 0:02:43.3]} 10... Nxd5 {[%clk 0:02:47.6]} 11. g3
{[%clk 0:02:38.3]} 11... Bb4+ {[%clk 0:02:43.1]} 12. Kf2 {[%clk 0:02:38.4]}
12... Be7 {[%clk 0:02:43.4]} 13. Ng2 {[%clk 0:02:38.3]} 13... O-O {[%clk
0:02:43.1]} 14. Nf4 {[%clk 0:02:36.3]} 14... Nd7 {[%clk 0:02:39.9]} 15. Bd3
{[%clk 0:02:34.4]} 15... Rfd8 {[%clk 0:02:37.6]} 16. Bd2 {[%clk 0:02:32.6]}
16... Rac8 {[%clk 0:02:36.4]} 17. Rac1 {[%clk 0:02:27]} 17... h6 {[%clk
0:02:21.8]} 18. b4 {[%clk 0:02:19.2]} 18... Qd6 {[%clk 0:01:53.9]} 19. Nxd5
{[%clk 0:01:47.8]} 19... exd5 {[%clk 0:01:51.4]} 20. Qb3 {[%clk 0:01:46.6]}
20... a6 {[%clk 0:01:50.1]} 21. a4 {[%clk 0:01:45.6]} 21... b5 {[%clk
0:01:50.5]} 22. a5 {[%clk 0:01:45.1]} 22... Qe6 {[%clk 0:01:37.1]} 23. h4 {[%clk
0:01:42.7]} 23... Nf6 {[%clk 0:01:36.7]} 24. g4 {[%clk 0:01:41.1]} 24... Ne8
{[%clk 0:01:03.9]} 25. Bf5 {[%clk 0:01:37]} 25... Qf6 {[%clk 0:01:04.3]} 26.
Bxc8 {[%clk 0:01:31.3]} 26... Rxc8 {[%clk 0:01:05.2]} 27. Qd3 {[%clk 0:01:22.1]}
27... Nd6 {[%clk 0:01:05.6]} 28. Rcg1 {[%clk 0:01:21.6]} 28... g6 {[%clk
0:01:00.9]} 29. g5 {[%clk 0:01:13]} 29... hxg5 {[%clk 0:01:01.8]} 30. hxg5
{[%clk 0:01:05.7]} 30... Qe6 {[%clk 0:00:56.9]} 31. Rh2 {[%clk 0:01:04.9]} 31...
Bf8 {[%clk 0:00:55.6]} 32. Rgh1 {[%clk 0:01:03.2]} 32... Bg7 {[%clk 0:00:56.1]}
33. Rh4 {[%clk 0:00:58.7]} 33... Re8 {[%clk 0:00:55.2]} 34. R1h2 {[%clk
0:00:53]} 34... Qe7 {[%clk 0:00:52.2]} 35. Rg4 {[%clk 0:00:43.6]} 35... Nc4
{[%clk 0:00:52.1]} 36. Rh1 {[%clk 0:00:40]} 36... Qe6 {[%clk 0:00:46.7]} 37.
Rgh4 {[%clk 0:00:38.9]} 37... Qd6 {[%clk 0:00:42.6]} 38. R4h3 {[%clk 0:00:32.3]}
38... Qe6 {[%clk 0:00:31.8]} 39. Rh4 {[%clk 0:00:32.3]} 39... Kf8 {[%clk
0:00:30.6]} 40. R4h3 {[%clk 0:00:22.7]} 40... Ke7 {[%clk 0:00:30.1]} 41. Rh7
{[%clk 0:00:22.5]} 41... Rg8 {[%clk 0:00:30.1]} 42. e4 {[%clk 0:00:20.4]} 42...
Kd7 {[%clk 0:00:29.9]} 43. e5 {[%clk 0:00:19.7]} 43... Kc8 {[%clk 0:00:21.4]}
44. f4 {[%clk 0:00:16.7]} 44... Bf8 {[%clk 0:00:21.8]} 45. Bc3 {[%clk
0:00:15.8]} 45... Be7 {[%clk 0:00:20.4]} 46. Qh3 {[%clk 0:00:15.9]} 46... Kd7
{[%clk 0:00:20.2]} 47. Rxf7 {[%clk 0:00:15.9]} 47... Re8 {[%clk 0:00:11.7]} 48.
Qxe6+ {[%clk 0:00:14.3]} 48... Kxe6 {[%clk 0:00:12.6]} 49. Rg7 {[%clk
0:00:14.9]} 49... Kf5 {[%clk 0:00:10.9]} 50. Kf3 {[%clk 0:00:14.9]} 50... Bxg5
{[%clk 0:00:05.4]} 51. fxg5 {[%clk 0:00:13.3]} 51... Rf8 {[%clk 0:00:05.9]} 52.
Rhh7 {[%clk 0:00:10.9]} 52... Ke6+ {[%clk 0:00:02.4]} 53. Ke2 {[%clk 0:00:11.5]}
1-0

[Event "*** Titled Tuesday Blitz"]
[Site "Chess.com"]
[Date "2020.03.03"]
[Round "2"]
[White "Vugar_Manafov"]
[Black "severomorskij"]
[Result "1-0"]
[WhiteElo "2589"]
[BlackElo "2781"]
[TimeControl "180+1"]
[EndTime "9:19:43 PST"]
[Termination "Vugar_Manafov won on time"]

1. Nf3 {[%clk 0:03:00.9]} 1... Nf6 {[%clk 0:02:58]} 2. g3 {[%clk 0:03:01.2]}
2... d5 {[%clk 0:02:57.8]} 3. Bg2 {[%clk 0:03:01]} 3... e6 {[%clk 0:02:55.8]} 4.
O-O {[%clk 0:03:01]} 4... c5 {[%clk 0:02:56]} 5. d3 {[%clk 0:03:01]} 5... Nc6
{[%clk 0:02:55.6]} 6. Nc3 {[%clk 0:03:00.9]} 6... d4 {[%clk 0:02:52.7]} 7. Nb1
{[%clk 0:02:58.7]} 7... Be7 {[%clk 0:02:46.1]} 8. c3 {[%clk 0:02:57.7]} 8... O-O
{[%clk 0:02:43.7]} 9. cxd4 {[%clk 0:02:57.3]} 9... cxd4 {[%clk 0:02:42.5]} 10.
Bg5 {[%clk 0:02:56.9]} 10... e5 {[%clk 0:02:37.6]} 11. Nbd2 {[%clk 0:02:55.7]}
11... Be6 {[%clk 0:02:37.6]} 12. a3 {[%clk 0:02:50.1]} 12... h6 {[%clk
0:02:29.8]} 13. Bxf6 {[%clk 0:02:48.2]} 13... Bxf6 {[%clk 0:02:30.7]} 14. Rc1
{[%clk 0:02:48.4]} 14... a5 {[%clk 0:02:25.6]} 15. Ne4 {[%clk 0:02:47.2]} 15...
Be7 {[%clk 0:02:24]} 16. Nc5 {[%clk 0:02:46.6]} 16... Bxc5 {[%clk 0:02:20.1]}
17. Rxc5 {[%clk 0:02:47.5]} 17... Qb6 {[%clk 0:02:19.6]} 18. Qc2 {[%clk
0:02:37.9]} 18... Bb3 {[%clk 0:01:49]} 19. Qc1 {[%clk 0:02:35.9]} 19... Rfe8
{[%clk 0:01:48.7]} 20. Nd2 {[%clk 0:02:31.7]} 20... Be6 {[%clk 0:01:48.4]} 21.
Bxc6 {[%clk 0:02:24.8]} 21... bxc6 {[%clk 0:01:49.3]} 22. Rxc6 {[%clk
0:02:14.8]} 22... Qb7 {[%clk 0:01:49.2]} 23. Rc7 {[%clk 0:02:13.3]} 23... Qd5
{[%clk 0:01:43.2]} 24. Qc5 {[%clk 0:02:01.5]} 24... Rab8 {[%clk 0:01:24.1]} 25.
Qxd5 {[%clk 0:02:00.3]} 25... Bxd5 {[%clk 0:01:23.5]} 26. Rc2 {[%clk 0:01:59.4]}
26... Rb5 {[%clk 0:01:19]} 27. Rfc1 {[%clk 0:01:51.1]} 27... Reb8 {[%clk
0:01:16]} 28. Rc8+ {[%clk 0:01:50.8]} 28... Rxc8 {[%clk 0:01:16]} 29. Rxc8+
{[%clk 0:01:51.7]} 29... Kh7 {[%clk 0:01:16.6]} 30. Rc2 {[%clk 0:01:52.1]} 30...
f6 {[%clk 0:01:13.4]} 31. Kf1 {[%clk 0:01:51.9]} 31... g5 {[%clk 0:01:12.4]} 32.
Ke1 {[%clk 0:01:52.1]} 32... Kg6 {[%clk 0:01:11.9]} 33. Kd1 {[%clk 0:01:50.8]}
33... Kf5 {[%clk 0:01:10.4]} 34. f3 {[%clk 0:01:50]} 34... h5 {[%clk 0:01:09.6]}
35. Kc1 {[%clk 0:01:48.8]} 35... g4 {[%clk 0:00:56.3]} 36. Nc4 {[%clk
0:01:17.3]} 36... Rb8 {[%clk 0:00:46.7]} 37. e4+ {[%clk 0:01:11.9]} 37... dxe3
{[%clk 0:00:44.8]} 38. Nxe3+ {[%clk 0:01:11.9]} 38... Ke6 {[%clk 0:00:44.8]} 39.
fxg4 {[%clk 0:01:11.6]} 39... hxg4 {[%clk 0:00:44.2]} 40. Nxg4 {[%clk
0:01:09.6]} 40... f5 {[%clk 0:00:38.9]} 41. Ne3 {[%clk 0:01:09.3]} 41... f4
{[%clk 0:00:29.3]} 42. gxf4 {[%clk 0:01:07.2]} 42... exf4 {[%clk 0:00:28.9]} 43.
Nxd5 {[%clk 0:01:07.4]} 43... Kxd5 {[%clk 0:00:29.8]} 44. Rf2 {[%clk 0:01:00.4]}
44... Ke5 {[%clk 0:00:22]} 45. Kc2 {[%clk 0:00:58.9]} 45... Rc8+ {[%clk
0:00:18]} 46. Kd2 {[%clk 0:00:58.6]} 46... Rb8 {[%clk 0:00:11.4]} 47. Kc3 {[%clk
0:00:58.1]} 47... Rc8+ {[%clk 0:00:08.5]} 48. Kb3 {[%clk 0:00:56.9]} 48... Rd8
{[%clk 0:00:08.4]} 49. Kc4 {[%clk 0:00:55.1]} 49... Rd4+ {[%clk 0:00:06.7]} 50.
Kc3 {[%clk 0:00:52.1]} 50... Rd7 {[%clk 0:00:07]} 51. b4 {[%clk 0:00:51.4]}
51... Rc7+ {[%clk 0:00:04.3]} 52. Kb3 {[%clk 0:00:51]} 52... axb4 {[%clk
0:00:04.7]} 53. axb4 {[%clk 0:00:51.9]} 53... Rd7 {[%clk 0:00:05.1]} 54. Rf3
{[%clk 0:00:48.6]} 54... Rf7 {[%clk 0:00:04.5]} 55. Kc4 {[%clk 0:00:46.7]} 55...
Rc7+ {[%clk 0:00:03.8]} 56. Kb3 {[%clk 0:00:46.5]} 56... Rf7 {[%clk 0:00:02.4]}
57. b5 {[%clk 0:00:45.8]} 57... Kd5 {[%clk 0:00:02.2]} 58. Kb4 {[%clk
0:00:44.7]} 58... Rf6 {[%clk 0:00:02.1]} 59. h4 {[%clk 0:00:43.1]} 59... Kd4
{[%clk 0:00:02.2]} 60. h5 {[%clk 0:00:43.1]} 60... Kd5 {[%clk 0:00:02.4]} 61. h6
{[%clk 0:00:42.3]} 1-0

[Event "*** Titled Tuesday Blitz"]
[Site "Chess.com"]
[Date "2020.03.03"]
[Round "2"]
[White "ronaldbrizuela"]
[Black "gena217"]
[Result "0-1"]
[WhiteElo "2661"]
[BlackElo "3011"]
[TimeControl "180+1"]
[EndTime "9:19:46 PST"]
[Termination "gena217 won on time"]

1. d4 {[%clk 0:03:00.9]} 1... Nf6 {[%clk 0:03:00.4]} 2. c4 {[%clk 0:03:01.8]}
2... e6 {[%clk 0:03:00.7]} 3. Nc3 {[%clk 0:03:01.6]} 3... Bb4 {[%clk 0:03:00.8]}
4. e3 {[%clk 0:03:01.5]} 4... O-O {[%clk 0:02:59.1]} 5. Ne2 {[%clk 0:03:01.4]}
5... Re8 {[%clk 0:02:57.6]} 6. a3 {[%clk 0:03:01.4]} 6... Bf8 {[%clk 0:02:58.2]}
7. g3 {[%clk 0:03:01.7]} 7... d5 {[%clk 0:02:58]} 8. cxd5 {[%clk 0:03:02.6]}
8... exd5 {[%clk 0:02:57.9]} 9. Bg2 {[%clk 0:03:03.1]} 9... c6 {[%clk
0:02:58.5]} 10. O-O {[%clk 0:03:03.5]} 10... Bf5 {[%clk 0:02:58.3]} 11. Nf4
{[%clk 0:02:57.1]} 11... Nbd7 {[%clk 0:02:56.9]} 12. f3 {[%clk 0:02:48.2]} 12...
Bd6 {[%clk 0:02:23.8]} 13. g4 {[%clk 0:02:23.9]} 13... Bg6 {[%clk 0:02:14.9]}
14. Nxg6 {[%clk 0:02:12.8]} 14... hxg6 {[%clk 0:02:12.5]} 15. e4 {[%clk
0:02:10.4]} 15... dxe4 {[%clk 0:01:55.6]} 16. fxe4 {[%clk 0:02:08.2]} 16... Qb6
{[%clk 0:01:56.1]} 17. Kh1 {[%clk 0:02:04.8]} 17... Rad8 {[%clk 0:01:46.4]} 18.
b4 {[%clk 0:01:34.6]} 18... Bb8 {[%clk 0:01:33.9]} 19. Be3 {[%clk 0:01:26.5]}
19... Qc7 {[%clk 0:01:25.3]} 20. Bg1 {[%clk 0:01:24.4]} 20... Nb6 {[%clk
0:01:19]} 21. h3 {[%clk 0:01:04.8]} 21... Qe7 {[%clk 0:01:14]} 22. Qf3 {[%clk
0:01:00.3]} 22... Nh7 {[%clk 0:01:06.4]} 23. Rae1 {[%clk 0:00:54.9]} 23... Ng5
{[%clk 0:01:04.5]} 24. Qd3 {[%clk 0:00:51.4]} 24... Ne6 {[%clk 0:01:03.1]} 25.
d5 {[%clk 0:00:49.3]} 25... Nf4 {[%clk 0:01:01.8]} 26. Qf3 {[%clk 0:00:43.5]}
26... g5 {[%clk 0:00:59.4]} 27. Rd1 {[%clk 0:00:30.9]} 27... Nc4 {[%clk
0:00:53.1]} 28. Ne2 {[%clk 0:00:26.4]} 28... Ne5 {[%clk 0:00:43.7]} 29. Qe3
{[%clk 0:00:21.7]} 29... Neg6 {[%clk 0:00:39.4]} 30. Nxf4 {[%clk 0:00:21.1]}
30... Nxf4 {[%clk 0:00:39.2]} 31. dxc6 {[%clk 0:00:19.5]} 31... bxc6 {[%clk
0:00:39.3]} 32. Rxd8 {[%clk 0:00:18.5]} 32... Qxd8 {[%clk 0:00:39.9]} 33. e5
{[%clk 0:00:18.8]} 33... Rxe5 {[%clk 0:00:33.2]} 34. Qf3 {[%clk 0:00:18.6]}
34... Qd5 {[%clk 0:00:30.2]} 35. Qxd5 {[%clk 0:00:18]} 35... cxd5 {[%clk
0:00:31.1]} 36. Rc1 {[%clk 0:00:17.1]} 36... Re8 {[%clk 0:00:28.6]} 37. Bf3
{[%clk 0:00:14.9]} 37... a6 {[%clk 0:00:25.8]} 38. Bd4 {[%clk 0:00:12.9]} 38...
Be5 {[%clk 0:00:22.6]} 39. Bxe5 {[%clk 0:00:12.5]} 39... Rxe5 {[%clk 0:00:23.5]}
40. a4 {[%clk 0:00:12.8]} 40... Re3 {[%clk 0:00:22.4]} 41. Bg2 {[%clk
0:00:12.4]} 41... Rb3 {[%clk 0:00:20.5]} 42. b5 {[%clk 0:00:11.6]} 42... axb5
{[%clk 0:00:20.5]} 43. axb5 {[%clk 0:00:12.5]} 43... Rxb5 {[%clk 0:00:21.4]} 44.
Rd1 {[%clk 0:00:12.7]} 44... g6 {[%clk 0:00:21.6]} 45. Rd4 {[%clk 0:00:11.1]}
45... Kg7 {[%clk 0:00:21.7]} 46. h4 {[%clk 0:00:10.8]} 46... Kf6 {[%clk
0:00:22.1]} 47. hxg5+ {[%clk 0:00:10.9]} 47... Kxg5 {[%clk 0:00:23]} 48. Bf3
{[%clk 0:00:11.4]} 48... Rb3 {[%clk 0:00:21.5]} 49. Bxd5 {[%clk 0:00:10.6]}
49... Nxd5 {[%clk 0:00:21.4]} 50. Rxd5+ {[%clk 0:00:10.5]} 50... Kxg4 {[%clk
0:00:22]} 51. Rd6 {[%clk 0:00:10.7]} 51... Kg3 {[%clk 0:00:19.5]} 52. Rd1 {[%clk
0:00:08.2]} 52... Kh3 {[%clk 0:00:15.8]} 53. Rg1 {[%clk 0:00:03.3]} 53... Rf3
{[%clk 0:00:12.2]} 0-1